{"text_format":"1","workbook":"xlsx","n_sheets":2,"sheets":["Sheet1","Sheet2"],"not_rendered":{"charts":0,"images":0,"macros":1,"external_links":0,"defined_names":0,"comments":0,"pivot_tables":0},"unopened":[],"bounds":{"document_bytes":16777216,"sheet_cells":100000,"rows_first":2000,"rows_last":500,"rows_between":2000,"halvings":0,"cell_chars":16384,"cell_head_chars":4096},"cells_cut":0,"cells_raw":0,"read":"whole","date_system":"1900"}

{"sheet":"Sheet1","index":0,"n_rows":42,"n_cols":31,"rows_kept":42,"cut":false,"hidden":false,"merged":[]}
[5]
[2022,null,null,{"$f":"TEXT(D3,\"[$-0809]ddd\")","v":"Sun"},{"$f":"TEXT(E3,\"[$-0809]ddd\")","v":"Mon"},"Tue","Wed","Thu","Sun","Mon","Tue","Wed","Thu","Sun","Mon","Tue","Wed","Thu","Sun","Mon","Tue","Wed","Thu","Sun","Mon","Tue"]
["الكود","اسم الطالب","الصف",{"$f":"IF(WORKDAY.INTL(DATE($A$2,$A$1,COLUMNS(A1))-1,COLUMN(A1),7,$AE$4:$AE$42)>EOMONTH(DATE($A$2,$A$1,COLUMNS(A1)),0),\"\",WORKDAY.INTL(DATE($A$2,$A$1,COLUMNS(A1))-1,COLUMN(A1),7,$AE$4:$AE$42))","v":"2022-05-01"},"2022-05-02","2022-05-03","2022-05-04","2022-05-05","2022-05-08","2022-05-09","2022-05-10","2022-05-11","2022-05-12","2022-05-15","2022-05-16","2022-05-17","2022-05-18","2022-05-19","2022-05-22","2022-05-23","2022-05-24","2022-05-25","2022-05-26","2022-05-29","2022-05-30","2022-05-31","عدد الغياب",null,null,null,"الإجازات"]
[1,"محمد1","10\\1",null,null,null,null,"غ","غ","غ","غ","غ","غ","غ","غ","غ","غ","غ","غ","غ","غ","غ","غ","غ","غ",null,{"$f":"COUNTIF(D4:Z4,\"غ\")","v":18},null,null,null,"2022-08-01"]
[2,"محمد2","10\\2",null,null,null,"غ","غ","غ","غ","غ","غ","غ","غ","غ","غ","غ","غ","غ","غ","غ","غ","غ",null,null,null,{"$f":"COUNTIF(D5:Z5,\"غ\")","v":17},null,null,null,"2022-08-02"]
[3,"محمد3","10\\3","غ","غ","غ","غ","غ","غ","غ","غ","غ","غ","غ","غ","غ","غ","غ","غ","غ","غ",null,null,null,null,null,18,null,null,null,"2022-08-03"]
[4,"محمد4","10\\4",null,null,null,null,"غ","غ","غ","غ","غ","غ","غ","غ","غ","غ","غ","غ","غ","غ","غ","غ","غ",null,null,17,null,null,null,"2022-08-04"]
[5,"محمد5","10\\5",null,null,"غ","غ","غ","غ","غ","غ","غ","غ","غ","غ","غ","غ","غ","غ","غ","غ","غ","غ",null,null,null,18,null,null,null,"2022-08-07"]
[6,"محمد6","10\\6",null,null,null,null,"غ","غ","غ","غ","غ","غ","غ","غ","غ","غ","غ","غ","غ","غ","غ","غ","غ","غ",null,18,null,null,null,"2022-08-08"]
[7,"محمد7","10\\7",null,null,null,null,null,"غ","غ","غ","غ","غ","غ","غ","غ","غ","غ","غ","غ","غ","غ","غ","غ","غ","غ",18,null,null,null,"2022-08-09"]
[8,"محمد8","10\\1",null,"غ","غ","غ","غ","غ","غ","غ","غ","غ","غ","غ","غ","غ","غ","غ","غ","غ","غ",null,null,null,null,18,null,null,null,"2022-08-10"]
[9,"محمد9","10\\2",null,null,null,"غ","غ","غ","غ","غ","غ","غ","غ","غ","غ","غ","غ","غ","غ","غ","غ","غ","غ",null,null,18,null,null,null,"2022-08-11"]
[10,"محمد10","10\\3",null,"غ","غ","غ","غ","غ","غ","غ","غ","غ","غ","غ","غ","غ","غ","غ","غ","غ",null,null,null,null,null,17,null,null,null,"2022-11-20"]
[11,"محمد11","10\\4","غ","غ","غ","غ","غ","غ","غ","غ","غ","غ","غ","غ","غ","غ","غ","غ","غ","غ","غ","غ","غ","غ","غ",null,null,null,null,"2022-11-21"]
[null,null,null,null,null,null,null,null,null,null,null,null,null,null,null,null,null,null,null,null,null,null,null,null,null,null,null,null,null,null,"2022-11-22"]
[null,null,null,null,null,null,null,null,null,null,null,null,null,null,null,null,null,null,null,null,null,null,null,null,null,null,null,null,null,null,"2022-11-23"]
[null,null,null,null,null,null,null,null,null,null,null,null,null,null,null,null,null,null,null,null,null,null,null,null,null,null,null,null,null,null,"2022-11-24"]
[null,null,null,null,null,null,null,null,null,null,null,null,null,null,null,null,null,null,null,null,null,null,null,null,null,null,null,null,null,null,"2022-11-27"]
[null,null,null,null,null,null,null,null,null,null,null,null,null,null,null,null,null,null,null,null,null,null,null,null,null,null,null,null,null,null,"2022-11-28"]
[null,null,null,null,null,null,null,null,null,null,null,null,null,null,null,null,null,null,null,null,null,null,null,null,null,null,null,null,null,null,"2022-11-29"]
[null,null,null,null,null,null,null,null,null,null,null,null,null,null,null,null,null,null,null,null,null,null,null,null,null,null,null,null,null,null,"2022-11-30"]
[null,null,null,null,null,null,null,null,null,null,null,null,null,null,null,null,null,null,null,null,null,null,null,null,null,null,null,null,null,null,"2022-12-01"]
[null,null,null,null,null,null,null,null,null,null,null,null,null,null,null,null,null,null,null,null,null,null,null,null,null,null,null,null,null,null,"2022-12-04"]
[null,null,null,null,null,null,null,null,null,null,null,null,null,null,null,null,null,null,null,null,null,null,null,null,null,null,null,null,null,null,"2022-12-05"]
[null,null,null,null,null,null,null,null,null,null,null,null,null,null,null,null,null,null,null,null,null,null,null,null,null,null,null,null,null,null,"2022-12-06"]
[null,null,null,null,null,null,null,null,null,null,null,null,null,null,null,null,null,null,null,null,null,null,null,null,null,null,null,null,null,null,"2022-12-07"]
[null,null,null,null,null,null,null,null,null,null,null,null,null,null,null,null,null,null,null,null,null,null,null,null,null,null,null,null,null,null,"2022-12-08"]
[null,null,null,null,null,null,null,null,null,null,null,null,null,null,null,null,null,null,null,null,null,null,null,null,null,null,null,null,null,null,"2022-12-11"]
[null,null,null,null,null,null,null,null,null,null,null,null,null,null,null,null,null,null,null,null,null,null,null,null,null,null,null,null,null,null,"2022-12-12"]
[null,null,null,null,null,null,null,null,null,null,null,null,null,null,null,null,null,null,null,null,null,null,null,null,null,null,null,null,null,null,"2022-12-13"]
[null,null,null,null,null,null,null,null,null,null,null,null,null,null,null,null,null,null,null,null,null,null,null,null,null,null,null,null,null,null,"2022-12-14"]
[null,null,null,null,null,null,null,null,null,null,null,null,null,null,null,null,null,null,null,null,null,null,null,null,null,null,null,null,null,null,"2022-12-15"]
[null,null,null,null,null,null,null,null,null,null,null,null,null,null,null,null,null,null,null,null,null,null,null,null,null,null,null,null,null,null,"2022-12-18"]
[null,null,null,null,null,null,null,null,null,null,null,null,null,null,null,null,null,null,null,null,null,null,null,null,null,null,null,null,null,null,"2022-12-19"]
[null,null,null,null,null,null,null,null,null,null,null,null,null,null,null,null,null,null,null,null,null,null,null,null,null,null,null,null,null,null,"2022-12-20"]
[null,null,null,null,null,null,null,null,null,null,null,null,null,null,null,null,null,null,null,null,null,null,null,null,null,null,null,null,null,null,"2022-12-21"]
[null,null,null,null,null,null,null,null,null,null,null,null,null,null,null,null,null,null,null,null,null,null,null,null,null,null,null,null,null,null,"2022-12-22"]
[null,null,null,null,null,null,null,null,null,null,null,null,null,null,null,null,null,null,null,null,null,null,null,null,null,null,null,null,null,null,"2022-02-08"]
[null,null,null,null,null,null,null,null,null,null,null,null,null,null,null,null,null,null,null,null,null,null,null,null,null,null,null,null,null,null,"2023-03-12"]
[null,null,null,null,null,null,null,null,null,null,null,null,null,null,null,null,null,null,null,null,null,null,null,null,null,null,null,null,null,null,"2023-03-13"]
[null,null,null,null,null,null,null,null,null,null,null,null,null,null,null,null,null,null,null,null,null,null,null,null,null,null,null,null,null,null,"2023-03-14"]
[null,null,null,null,null,null,null,null,null,null,null,null,null,null,null,null,null,null,null,null,null,null,null,null,null,null,null,null,null,null,"2023-03-15"]

{"sheet":"Sheet2","index":1,"n_rows":1,"n_cols":5,"rows_kept":1,"cut":false,"hidden":false,"merged":[]}
["الكود","الاسم","القسم","التاريخ","نوع الإجازة"]